bitfinex/quotes_ETHUSD_20251015
["timestamp","ask_amount","ask_price","bid_price","bid_amount"]
[1760495675749,2.8096,4141.2,4140.1,2.41538477]
[1760495675750,0.6336,4141.1,4140.5,2.41512918]
[1760495675920,0.6336,4140.9,4140.4,0.4292]
[1760495676122,0.6336,4140.9,4140.8,2.41499227]
[1760495676656,0.6336,4140.9,4140.8,2.84419227]
[1760495677425,0.6336,4140.9,4140.0,0.1781]
[1760495677626,1.05296,4140.9,4140.0,0.1781]
[1760495677820,1.05296,4140.9,4139.7,0.1781]
[1760495677821,0.6336,4140.4,4139.7,0.1781]
[1760495678026,0.6336,4140.2,4138.8,0.002]
[1760495678248,0.6336,4139.8,4139.4,0.12]
[1760495678454,0.6336,4139.6,4139.4,0.12]
[1760495678835,1.0711,4139.6,4139.4,0.12]
[1760495679275,0.6336,4139.6,4139.4,0.12]
[1760495679559,0.6336,4139.5,4139.1,0.1621]
[1760495679860,0.6336,4139.3,4139.1,0.2821]
[1760495680072,3.1056,4139.2,4139.1,0.2821]
[1760495680750,3.1056,4139.2,4139.1,2.69808415]
[1760495681266,3.1056,4139.2,4139.1,0.2821]
[1760495681874,3.1056,4139.2,4139.1,0.122]
[1760495682170,3.1056,4139.2,4139.1,0.002]
[1760495683681,3.541,4139.2,4139.1,0.002]
[1760495683972,3.1056,4139.2,4139.1,0.002]
[1760495684450,3.541,4139.2,4139.1,0.002]
[1760495685375,5.717,4139.2,4139.1,0.002]
[1760495685938,8.0997933,4139.2,4139.1,0.002]
[1760495686169,7.16846752,4139.2,4139.1,0.002]
[1760495686350,9.5843933,4139.2,4139.1,0.002]
[1760495686670,10.0197933,4139.2,4139.1,0.002]
[1760495686975,8.9317933,4139.2,4139.1,0.002]
[1760495687842,9.57367441,4139.2,4139.1,0.002]
[1760495688259,9.57367441,4139.2,4138.8,0.002]
[1760495688260,3.04970089,4138.9,4138.8,1e-08]
[1760495688447,9.22908539,4138.9,4138.8,1e-08]
[1760495688663,5.20150089,4138.9,4138.8,1e-08]
[1760495688870,0.09693386,4139.7,4138.8,1e-08]
[1760495688871,2.41563398,4139.7,4138.8,1e-08]
[1760495689047,2.41580905,4139.4,4138.8,1e-08]
[1760495689371,2.5536,4139.2,4138.8,1e-08]
[1760495689559,0.6336,4139.0,4138.8,1e-08]
[1760495689769,3.1056,4138.9,4138.8,1e-08]
[1760495692494,2.472,4138.9,4138.8,3.26556078]
[1760495693170,0.81022451,4140.1,4139.4,2.41578256]
[1760495693369,0.6336,4139.7,4139.4,2.41575097]
[1760495693580,0.37882451,4140.1,4139.6,0.1691]
[1760495693762,2.8981,4140.0,4138.9,0.1691]
[1760495693966,2.41574031,4139.6,4138.9,0.1691]
[1760495694275,0.6336,4139.4,4138.9,0.1691]
[1760495694462,0.6336,4139.4,4138.8,1e-08]
[1760495694463,0.4261,4139.3,4138.8,1e-08]
[1760495694666,0.6336,4139.1,4138.8,1e-08]
[1760495695294,0.6336,4138.9,4138.8,1e-08]
[1760495695467,3.1056,4138.9,4138.8,1e-08]
[1760495696562,0.6336,4139.1,4138.8,1e-08]
[1760495696863,2.472,4139.0,4138.8,1e-08]
[1760495697384,3.1056,4139.0,4138.8,1e-08]
[1760495697585,0.6336,4138.9,4138.8,2.41615078]
[1760495697783,0.6336,4138.9,4138.8,2.94588445]
[1760495698675,0.6336,4138.9,4138.8,1e-08]
[1760495699185,1.293,4138.9,4138.8,1e-08]
[1760495699990,0.6336,4138.9,4138.8,1e-08]
[1760495700310,3.71190089,4138.9,4138.8,1e-08]
[1760495701106,1.2958,4138.9,4138.8,1e-08]
[1760495701294,3.71190089,4138.9,4138.8,1e-08]
[1760495701566,4.33039098,4138.9,4138.8,1e-08]
[1760495702299,1.25209009,4138.9,4138.8,1e-08]
[1760495702917,3.85759098,4138.9,4138.8,1e-08]
[1760495703114,1.44149009,4138.9,4138.8,1e-08]
[1760495703319,2.472,4138.9,4138.8,1e-08]
[1760495703490,3.1056,4138.9,4138.8,1e-08]
[1760495705379,5.2836,4138.9,4138.8,1e-08]
[1760495706195,1.089,4138.9,4138.8,2.87905928]
[1760495706412,3.561,4138.9,4138.8,3.52958649]
[1760495706720,2.472,4138.9,4138.8,2.53695928]
[1760495706932,3.1056,4138.9,4138.8,1e-08]
[1760495707081,3.7663,4138.9,4138.8,1e-08]
[1760495707277,5.6863,4138.9,4138.8,1e-08]
[1760495707487,5.0256,4138.9,4138.8,1e-08]
[1760495708214,2.472,4138.9,4138.8,2.87905928]
[1760495708410,2.472,4138.9,4138.8,3.40879228]
[1760495708689,2.472,4138.9,4138.8,1e-08]
[1760495709186,2.472,4138.9,4138.8,2.41615928]
[1760495709684,2.472,4138.9,4138.8,1e-08]
[1760495709685,3.1056,4138.9,4138.8,1e-08]
[1760495709896,5.0256,4138.9,4138.8,1e-08]
[1760495710099,9.12663443,4138.9,4138.8,1e-08]
[1760495710901,6.71053354,4138.9,4138.8,1e-08]
[1760495711388,5.54707354,4138.9,4138.8,1e-08]
[1760495713994,8.19977443,4138.9,4138.8,1e-08]
[1760495714321,5.54707354,4138.9,4138.8,1e-08]
[1760495714834,7.96317443,4138.9,4138.8,1e-08]
[1760495715128,5.78367354,4138.9,4138.8,1e-08]
[1760495715333,7.72507354,4138.9,4138.8,1e-08]
[1760495715631,2.69947354,4138.9,4138.8,1e-08]
[1760495715836,3.561,4138.9,4138.8,0.45960001]
[1760495716126,3.7664,4138.9,4138.8,1e-08]
[1760495716306,6.53870089,4138.9,4138.8,1e-08]
[1760495716632,8.45870089,4138.9,4138.8,1e-08]
[1760495716813,8.98136374,4138.9,4138.8,1e-08]
[1760495717016,9.10216374,4138.9,4138.8,1e-08]
[1760495717223,5.54826285,4138.9,4138.8,1e-08]
[1760495717440,5.0266,4138.9,4138.8,1e-08]
[1760495717829,5.54824406,4138.9,4138.8,1e-08]
[1760495718034,5.0266,4138.9,4138.8,1e-08]
[1760495718556,7.96445595,4138.9,4138.8,1e-08]
[1760495718856,6.35690066,4138.9,4138.8,1e-08]
[1760495719018,5.54835506,4138.9,4138.8,1e-08]
[1760495719221,2.473,4138.9,4138.8,2.87575928]
[1760495719633,3.1066,4138.9,4138.8,0.12080001]
[1760495719860,2.473,4138.9,4138.8,0.12080001]
[1760495720061,5.2632,4138.9,4138.8,1e-08]
[1760495720267,9.33666511,4138.9,4138.8,1e-08]
[1760495720434,8.67586511,4138.9,4138.8,1e-08]
[1760495720750,8.91246511,4138.9,4138.8,1e-08]
[1760495720967,9.33666511,4138.9,4138.8,1e-08]
[1760495724759,7.41666511,4138.9,4138.8,1e-08]
[1760495725165,6.99246511,4138.9,4138.8,1e-08]
[1760495725352,9.47386511,4138.9,4138.8,1e-08]
[1760495726263,9.21586511,4138.9,4138.8,1e-08]
[1760495727756,8.79166511,4138.9,4138.8,1e-08]
[1760495728070,9.21586511,4138.9,4138.8,1e-08]
[1760495729466,4.96975927,4138.8,4138.7,0.002]
[1760495729675,7.97220316,4138.8,4138.7,0.002]
[1760495729838,8.39640316,4138.8,4138.7,0.002]
[1760495730260,8.39640316,4138.8,4138.3,0.002]
[1760495730261,4.9699928,4138.4,4138.3,0.002]
[1760495730539,7.96376139,4138.4,4138.3,0.002]
[1760495730770,10.67714386,4138.4,4138.3,0.002]
[1760495731072,11.10134386,4138.4,4138.3,0.002]
[1760495731251,9.79793496,4138.4,4138.3,0.002]
[1760495732574,9.37373496,4138.4,4138.3,0.002]
[1760495732958,9.79793496,4138.4,4138.3,0.002]
[1760495733654,10.17687471,4138.4,4138.3,0.002]
[1760495735379,12.35487471,4138.4,4138.3,0.002]
[1760495735986,11.26587471,4138.4,4138.3,0.002]
[1760495737598,10.17687471,4138.4,4138.3,0.002]
[1760495738871,4.97005119,4138.3,4138.1,1e-08]
[1760495739075,7.96387818,4138.2,4138.1,1e-08]
[1760495739479,8.38807818,4138.2,4138.1,1e-08]
[1760495740687,21.1830769,4138.2,4138.1,1e-08]
[1760495742874,2.5536,4137.9,4137.8,1e-08]
[1760495743062,7.96405338,4137.9,4137.8,1e-08]
[1760495743258,8.38825338,4137.9,4137.8,1e-08]
[1760495745095,8.76728751,4137.9,4137.8,1e-08]
[1760495745260,10.94528751,4137.9,4137.8,1e-08]
[1760495745459,12.35526108,4137.9,4137.8,1e-08]
[1760495746976,11.93106108,4137.9,4137.8,1e-08]
[1760495748371,8.37006108,4137.9,4137.8,1e-08]
[1760495748608,10.84206108,4137.9,4137.8,1e-08]
[1760495749098,9.75306108,4137.9,4137.8,1e-08]
[1760495750575,9.37402695,4137.9,4137.8,0.45070001]
[1760495751415,9.37402695,4137.9,4137.8,1e-08]
[1760495751896,9.37402695,4137.9,4137.8,0.45070001]
[1760495752406,9.55212695,4137.9,4137.8,0.45070001]
[1760495752603,9.55212695,4137.9,4137.8,1e-08]
[1760495753996,9.9311215,4137.9,4137.8,1e-08]
[1760495755406,12.1091215,4137.9,4137.8,1e-08]
[1760495755706,11.98111816,4137.9,4137.8,1e-08]
[1760495756109,10.68009319,4137.9,4137.8,1e-08]
[1760495757681,10.68009319,4137.9,4137.3,0.002]
[1760495757682,0.6336,4137.7,4137.3,0.002]
[1760495757882,0.6336,4137.5,4137.3,0.002]
[1760495758105,5.54736859,4137.4,4137.3,0.002]
[1760495758281,8.38854543,4137.4,4137.3,0.002]
[1760495758677,8.34337067,4137.4,4137.3,0.002]
[1760495758903,10.85158954,4137.4,4137.3,0.002]
[1760495759080,12.054151,4137.4,4137.3,0.002]
[1760495759287,12.054151,4137.4,4136.4,0.1781]
[1760495759288,3.05110271,4136.5,4136.4,0.1781]
[1760495759490,7.9648713,4136.5,4136.4,0.1781]
[1760495759715,8.08356032,4136.5,4136.4,0.1781]
[1760495760412,4.97139497,4136.0,4135.9,0.1691]
[1760495760582,7.96516356,4136.0,4135.9,0.6248]
[1760495761310,7.96516356,4136.0,4135.9,0.1691]
[1760495762284,7.96516356,4136.0,4135.9,0.6248]
[1760495762610,5.0256,4136.0,4135.9,0.6248]
[1760495762801,5.0256,4136.0,4135.9,0.92908245]
[1760495763113,5.0256,4136.0,4135.9,0.6248]
[1760495764214,1.30434909,4137.4,4135.9,0.6248]
[1760495764402,2.99325861,4137.3,4137.0,0.1736]
[1760495764610,0.52125861,4137.2,4137.1,0.4557]
[1760495764829,0.6336,4137.1,4137.0,0.1736]
[1760495764982,5.54685861,4137.1,4137.0,0.1736]
[1760495765311,7.09125861,4137.1,4137.0,0.6293]
[1760495766285,7.72485861,4137.1,4137.0,0.6293]
[1760495766803,0.37902061,4137.6,4137.0,0.6293]
[1760495767008,2.472,4137.5,4137.4,2.41697684]
[1760495767208,2.472,4137.5,4137.4,3.15994452]
[1760495767700,0.001,4138.0,4137.4,3.15994452]
[1760495767900,0.001,4138.0,4137.9,2.41668479]
[1760495768106,1.028,4138.0,4137.9,2.41668479]
[1760495768312,1.028,4138.0,4137.9,2.87238479]
[1760495768517,1.028,4138.0,4137.9,3.4013003]
[1760495770129,0.001,4138.0,4137.9,3.4013003]
[1760495770297,0.997,4138.0,4137.9,3.4013003]
[1760495770626,0.001,4138.0,4137.9,3.4013003]
[1760495770808,0.001,4138.9,4137.9,3.4013003]
[1760495770809,0.001,4138.9,4138.4,2.4163928]
[1760495771126,0.001,4138.9,4138.4,2.65803208]
[1760495771427,0.001,4138.9,4138.4,3.12873208]
[1760495772000,1.893,4138.5,4138.4,3.12873208]
[1760495772820,1.893,4138.5,4138.4,0.4707]
[1760495773025,1.893,4138.5,4138.3,0.1488]
[1760495773233,0.6336,4138.4,4138.0,2.56537987]
[1760495773543,0.6336,4138.4,4138.2,2.41650959]
[1760495773697,0.6336,4138.4,4138.1,0.6195]
[1760495774306,0.6336,4138.4,4138.2,2.41650487]
[1760495774620,0.6336,4138.4,4138.1,0.6195]
[1760495775030,0.6336,4138.4,4138.2,0.4707]
[1760495775245,2.5266,4138.5,4138.4,2.4163928]
[1760495775394,0.001,4138.5,4138.4,2.8870928]
[1760495775599,0.817,4138.5,4138.4,2.8870928]
[1760495777213,0.817,4138.5,4138.4,3.0078928]
[1760495777578,1.4506,4138.5,4138.4,0.1208]
[1760495777742,0.6336,4138.4,4137.9,2.4166836]
[1760495778053,0.6336,4138.4,4137.8,0.002]
[1760495778054,1.02028185,4138.4,4137.8,0.002]
[1760495778224,3.05010959,4138.2,4137.8,0.002]
[1760495778393,2.41658895,4138.1,4137.8,0.002]
[1760495778597,3.48972516,4138.2,4137.8,0.002]
[1760495778812,3.05012516,4138.2,4137.8,0.002]
[1760495779009,2.41659279,4138.1,4137.8,0.002]
[1760495779323,0.4396,4138.1,4137.8,0.002]
[1760495779502,3.05004561,4138.4,4137.8,0.002]
[1760495779703,0.6336,4138.2,4137.8,0.002]
[1760495780128,3.67297559,4138.5,4138.1,0.1488]
[1760495780129,0.6336,4138.4,4138.1,0.1488]
[1760495780343,0.6336,4138.4,4138.1,0.69428571]
[1760495780630,2.47,4138.3,4138.2,2.88720959]
[1760495780794,2.47,4138.3,4137.8,2.41869636]
[1760495780997,0.6336,4138.2,4137.8,2.41873829]
[1760495781224,0.6336,4138.2,4138.0,2.41660519]
[1760495781431,0.6336,4138.2,4137.8,2.41869404]
[1760495781807,0.6336,4138.2,4137.9,2.41666271]
[1760495782012,0.6336,4138.2,4137.9,0.95425205]
[1760495782213,0.6336,4138.2,4138.0,2.41662505]
[1760495782510,0.6336,4138.2,4137.8,0.002]
[1760495783030,0.6336,4137.9,4137.8,0.002]
[1760495784131,2.47,4138.3,4137.8,0.002]
[1760495784132,0.6336,4138.2,4137.8,0.002]
[1760495784542,0.001,4138.5,4137.8,0.002]
[1760495784543,0.001,4138.5,4138.0,2.41659578]
[1760495784716,0.6336,4138.3,4138.0,2.41659578]
[1760495785229,0.6336,4138.3,4137.9,2.41667534]
[1760495785230,1.089,4138.2,4137.9,2.41667534]
[1760495785437,0.6336,4138.1,4137.8,2.41873346]
[1760495785833,0.6336,4138.1,4137.8,0.002]
[1760495786802,0.6336,4138.2,4137.8,0.002]
[1760495787223,0.853,4137.9,4137.8,0.002]
[1760495787431,7.65968479,4137.9,4137.8,0.002]
[1760495787628,8.09928479,4137.9,4137.8,0.002]
[1760495789034,21.52890258,4137.9,4137.8,0.002]
[1760495789197,22.04732444,4137.9,4137.8,0.002]
[1760495789398,8.65381529,4137.9,4137.8,0.002]
[1760495789619,2.5536,4137.9,4137.8,0.002]
[1760495789822,5.1444,4137.9,4137.8,0.002]
[1760495790037,4.39,4137.9,4137.8,0.002]
[1760495790204,5.0236,4137.9,4137.8,0.002]
[1760495791430,5.0236,4137.9,4137.8,0.4727]
[1760495791636,5.0236,4137.9,4137.8,0.002]
[1760495791935,8.60174479,4137.9,4137.8,0.002]
[1760495792428,2.5536,4137.9,4137.8,0.002]
[1760495792607,7.44028479,4137.9,4137.8,0.002]
[1760495792812,5.0236,4137.9,4137.8,0.002]
[1760495793014,7.44028479,4137.9,4137.8,0.002]
[1760495793416,5.0236,4137.9,4137.8,0.002]
[1760495794009,7.44028479,4137.9,4137.8,0.002]
[1760495794225,5.0236,4137.9,4137.8,0.002]
[1760495795333,7.2016,4137.9,4137.8,0.002]
[1760495796335,5.0236,4137.9,4137.8,0.002]
[1760495796508,8.09928479,4137.9,4137.8,0.002]
[1760495797132,7.65968479,4137.9,4137.8,0.002]
[1760495797635,8.09928479,4137.9,4137.8,0.002]
[1760495799248,8.61964313,4137.9,4137.8,0.002]
[1760495799453,8.61965454,4137.9,4137.8,0.002]
[1760495799619,7.44028479,4137.9,4137.8,0.002]
[1760495801724,9.43491919,4137.9,4137.8,0.002]
[1760495801942,8.91445047,4137.9,4137.8,0.002]
[1760495802143,8.44095047,4137.9,4137.8,0.002]
[1760495803248,8.96168499,4137.9,4137.8,0.002]
[1760495803437,9.43518499,4137.9,4137.8,0.002]
[1760495804347,8.96168499,4137.9,4137.8,0.002]
[1760495805151,5.0236,4137.9,4137.8,0.002]
[1760495805443,9.61828479,4137.9,4137.8,0.002]
[1760495805614,10.09178479,4137.9,4137.8,0.002]
[1760495805813,10.61264492,4137.9,4137.8,0.002]
[1760495806520,10.13914492,4137.9,4137.8,0.002]
[1760495807140,6.58014492,4137.9,4137.8,0.002]
[1760495807341,5.0236,4137.9,4137.8,0.002]
[1760495807544,8.19647762,4137.9,4137.8,0.002]
[1760495807774,9.19134703,4137.9,4137.8,0.002]
[1760495808071,9.18884703,4137.9,4137.8,0.002]
[1760495810271,22.99745731,4137.9,4137.8,0.002]
[1760495811055,22.61846482,4137.9,4137.8,0.002]
[1760495811683,0.6336,4137.4,4137.3,0.002]
[1760495811978,7.96194625,4137.4,4137.3,0.002]
[1760495812269,9.60116025,4137.4,4137.3,0.002]
[1760495813109,10.90335018,4137.4,4137.3,0.002]
[1760495813381,9.60016025,4137.4,4137.3,0.002]
[1760495813577,7.13016025,4137.4,4137.3,0.002]
[1760495813760,9.60016025,4137.4,4137.3,0.002]
[1760495814360,6.02656025,4137.4,4137.3,0.002]
[1760495814572,8.49656025,4137.4,4137.3,0.002]
[1760495814772,9.13016025,4137.4,4137.3,0.002]
[1760495814968,6.66016025,4137.4,4137.3,0.002]
[1760495815222,7.96194625,4137.4,4137.3,0.002]
[1760495815476,10.13994625,4137.4,4137.3,0.002]
[1760495815876,4.91136941,4137.4,4137.3,0.002]
[1760495816077,7.32834625,4137.4,4137.3,0.4713]
[1760495816282,7.96194625,4137.4,4137.3,0.002]
[1760495816980,9.03773134,4137.4,4137.3,0.002]
[1760495818388,9.50773134,4137.4,4137.3,0.002]
[1760495819888,9.03773134,4137.4,4137.3,0.002]
[1760495820112,6.56773134,4137.4,4137.3,0.002]
[1760495820251,9.03773134,4137.4,4137.3,0.002]
[1760495820569,9.50773134,4137.4,4137.3,0.002]
[1760495823882,9.03773134,4137.4,4137.3,0.002]
[1760495824253,6.56773134,4137.4,4137.3,0.002]
[1760495824657,9.50773134,4137.4,4137.3,0.002]
[1760495825087,9.03773134,4137.4,4137.3,0.002]
[1760495825284,11.21573134,4137.4,4137.3,0.002]
[1760495827183,10.12673134,4137.4,4137.3,0.002]
[1760495828982,10.59673134,4137.4,4137.3,0.002]
[1760495829168,9.50773134,4137.4,4137.3,0.002]
[1760495829568,9.03773134,4137.4,4137.3,0.002]
[1760495830704,9.48593134,4137.4,4137.3,0.002]
[1760495831902,9.03773134,4137.4,4137.3,0.002]
[1760495832074,4.85834625,4137.4,4137.3,0.002]
[1760495832279,7.32834625,4137.4,4137.3,0.002]
[1760495832481,7.96194625,4137.4,4137.3,0.002]
[1760495833243,8.41014625,4137.4,4137.3,0.002]
[1760495835217,10.80233618,4137.4,4137.3,0.002]
[1760495835533,13.63710047,4137.4,4137.3,0.002]
[1760495835736,11.24491054,4137.4,4137.3,0.002]
[1760495835938,2.41726896,4136.9,4136.8,1e-08]
[1760495836238,8.19533837,4136.9,4136.8,1e-08]
[1760495836441,8.64353837,4136.9,4136.8,1e-08]
[1760495836639,10.2590902,4136.9,4136.8,1e-08]
[1760495838125,9.5767902,4136.9,4136.8,1e-08]
[1760495838462,9.70025653,4136.9,4136.8,1e-08]
[1760495838646,8.53648149,4136.9,4136.8,1e-08]
[1760495838971,9.70025653,4136.9,4136.8,1e-08]
[1760495839344,7.23125653,4136.9,4136.8,1e-08]
[1760495839545,8.34029553,4136.9,4136.8,1e-08]
[1760495839722,7.32763837,4136.9,4136.8,0.44800001]
[1760495840229,7.96123837,4136.9,4136.8,0.44800001]
[1760495841255,6.04123837,4136.9,4136.8,0.44800001]
[1760495841551,7.96123837,4136.9,4136.8,0.44800001]
[1760495841957,7.96123837,4136.9,4136.8,1e-08]
[1760495842352,9.03698638,4136.9,4136.8,1e-08]
[1760495842972,9.48338638,4136.9,4136.8,1e-08]
[1760495843579,4.97174576,4135.4,4135.1,0.448]
[1760495843782,7.96211517,4135.4,4135.1,0.448]
[1760495843937,7.96211517,4135.4,4134.9,0.1488]
[1760495843938,7.96211517,4135.4,4135.3,0.6171]
[1760495845269,10.14011517,4135.4,4135.3,0.6171]
[1760495845471,8.52974576,4135.4,4135.3,0.6171]
[1760495845767,9.05156116,4135.4,4135.3,0.6171]
[1760495846650,6.6334154,4135.4,4135.3,0.6171]
[1760495846969,2.469,4135.4,4135.3,0.7379]
[1760495847170,2.469,4135.4,4135.3,3.47170471]
[1760495847394,2.469,4135.4,4135.3,3.49588675]
[1760495847593,2.469,4135.4,4135.3,3.47170471]
[1760495847881,2.469,4135.4,4135.3,3.47170928]
[1760495849444,2.469,4135.4,4135.3,0.6171]
[1760495849445,3.1026,4135.4,4135.3,0.6171]
[1760495849745,3.1026,4135.4,4135.3,0.1691]
[1760495849947,3.1026,4135.4,4135.3,0.6171]
[1760495851270,2.41753923,4136.5,4135.3,0.6171]
[1760495851483,3.05128157,4136.2,4135.4,2.86609957]
[1760495851653,0.6336,4136.0,4135.5,0.30351996]
[1760495851854,0.6336,4135.8,4135.6,0.448]
[1760495852058,2.469,4135.7,4135.5,0.30351996]
[1760495852390,2.469,4135.6,4135.3,0.1691]
[1760495852681,2.469,4135.5,4135.3,2.58730066]
[1760495852852,2.469,4135.5,4135.4,0.448]
[1760495853777,2.469,4135.5,4135.4,2.86614576]
[1760495853981,2.469,4135.5,4135.4,3.4114962]
[1760495855372,4.647,4135.5,4135.4,3.4114962]
[1760495855953,4.647,4135.5,4135.4,0.99335044]
[1760495856154,0.6336,4135.4,4135.3,0.1691]
[1760495856586,0.6336,4135.4,4134.9,0.1488]
[1760495857884,0.6336,4135.4,4135.0,0.448]
[1760495858093,0.6336,4135.4,4135.1,2.5874212]
[1760495858459,0.6336,4135.4,4135.1,3.0354212]
[1760495858657,0.6336,4135.4,4135.1,2.5874212]
[1760495858869,0.6336,4135.4,4135.1,0.1691]
[1760495859190,0.6336,4135.4,4135.2,2.86622842]
[1760495859388,0.6336,4135.4,4135.2,2.98702842]
[1760495859994,0.6336,4135.4,4135.2,0.5688]
[1760495860204,0.6336,4135.4,4135.2,2.98282642]
[1760495860483,1.92,4136.2,4135.5,2.4180799]
[1760495860690,5.54445498,4136.1,4135.6,0.1208]
[1760495860860,2.5536,4135.9,4135.6,0.1208]
[1760495861060,2.5536,4135.9,4135.6,2.53882376]
[1760495861361,0.6336,4135.9,4135.6,2.98262376]
[1760495861557,0.6336,4135.9,4135.7,0.4438]
[1760495861758,0.49989947,4136.7,4135.8,0.5646]
[1760495862058,0.6336,4136.5,4135.8,0.5646]
[1760495862266,0.6336,4136.3,4135.8,0.5646]
[1760495862585,0.001,4137.3,4135.9,0.46797853]
[1760495862789,2.41727435,4136.9,4136.2,0.2944]
[1760495862975,1.92,4136.7,4136.2,2.7120675]
[1760495863185,0.52185515,4136.6,4136.2,0.1208]
[1760495863368,2.469,4136.5,4136.2,0.1208]
[1760495863770,4.97121961,4136.3,4133.9,2.41897897]
[1760495864086,2.5536,4136.0,4135.3,2.41818466]
[1760495864273,0.6336,4135.8,4135.4,2.41812548]
[1760495864481,2.5536,4135.8,4135.1,0.1711]
[1760495864656,2.41738317,4136.8,4136.0,2.41779034]
[1760495865000,0.6336,4136.6,4136.1,0.1736]
[1760495865197,2.5536,4136.6,4135.3,0.4438]
[1760495865373,0.6336,4136.4,4135.8,2.41786844]
[1760495865687,0.6336,4136.1,4135.2,0.1691]
[1760495865888,0.6336,4135.7,4135.2,0.1691]
[1760495866076,2.469,4135.6,4135.2,0.1691]
[1760495866859,2.469,4135.6,4135.1,0.002]
[1760495867059,0.6336,4135.5,4135.1,0.002]
[1760495867812,0.6336,4135.4,4135.1,0.002]
[1760495867988,0.6336,4135.2,4135.1,0.002]
[1760495870918,0.4592,4136.2,4135.2,2.41826272]
[1760495871105,0.6336,4135.8,4135.2,2.41826272]
[1760495871278,2.5536,4135.6,4135.2,2.41826272]
[1760495871606,2.5536,4135.6,4135.1,0.002]
[1760495871813,5.43083692,4135.6,4135.1,0.002]
[1760495872213,3.0128,4135.6,4135.1,0.002]
[1760495872519,2.5536,4135.6,4135.1,0.1711]
[1760495873096,2.5536,4135.6,4135.1,2.58940547]
[1760495873410,2.5536,4135.6,4135.1,0.1711]
[1760495873828,2.5536,4135.6,4135.2,0.1208]
[1760495874805,0.2064,4136.8,4135.3,0.47238204]
[1760495875003,2.98991562,4136.6,4136.1,2.41771331]
[1760495875308,2.98991562,4136.6,4136.2,2.41766609]
[1760495875309,0.6336,4136.4,4136.2,2.41766609]
[1760495875606,2.468,4136.3,4136.1,2.59132535]
[1760495875811,2.468,4136.3,4135.1,0.6193]
[1760495876006,0.6336,4136.1,4135.2,2.41820631]
[1760495876307,3.05146217,4135.9,4135.1,2.58941272]
[1760495876517,3.05151537,4135.8,4135.1,2.58941366]
[1760495876679,2.468,4135.7,4135.1,2.58941366]
[1760495876879,0.6336,4135.6,4135.1,0.002]
[1760495877180,0.6336,4135.6,4135.1,2.42032046]
[1760495877683,0.6336,4135.6,4135.1,2.42031192]
[1760495877999,0.6336,4135.6,4135.2,2.41825198]
[1760495878391,0.6336,4135.6,4135.1,2.58941159]
[1760495879079,1.0928,4135.6,4135.1,0.002]
[1760495879279,1.0928,4135.6,4135.1,2.42031813]
[1760495879686,1.0928,4135.6,4135.1,0.002]
[1760495880108,1.47326634,4135.6,4135.2,2.41825145]
[1760495880409,1.0928,4135.5,4135.1,0.002]
[1760495880605,0.6336,4135.3,4135.1,0.002]
[1760495881206,2.468,4135.4,4135.2,2.4182172]
[1760495881590,2.468,4135.3,4135.2,2.4182172]
[1760495881791,2.468,4135.3,4135.2,2.96381179]
[1760495882109,2.468,4135.3,4135.2,2.98799441]
[1760495882309,2.468,4135.3,4135.2,3.41201179]
[1760495882504,2.468,4135.3,4135.2,3.43619441]
[1760495882694,2.468,4135.3,4135.2,3.41201179]
[1760495882912,2.468,4135.3,4135.2,2.96381179]
[1760495883111,2.468,4135.3,4135.2,2.4182172]
[1760495884211,2.468,4135.3,4135.1,0.002]
[1760495884434,2.468,4135.3,4135.2,2.41826272]
[1760495884635,2.468,4135.3,4135.2,2.53906272]
[1760495885206,3.557,4135.3,4135.2,2.53906272]
[1760495885414,4.646,4135.3,4135.2,3.54493347]
[1760495886434,2.468,4135.3,4135.2,3.54493347]
[1760495889317,0.2074,4136.8,4135.2,3.54493347]
[1760495889318,0.001,4136.8,4135.2,1.12667075]
[1760495889616,0.001,4136.8,4136.7,0.1208]
[1760495890616,4.389,4136.8,4136.7,0.1208]
[1760495890822,2.469,4136.8,4136.7,0.1208]
[1760495894058,2.468,4136.8,4136.7,2.53818583]
[1760495894341,2.468,4136.8,4136.7,0.1208]
[1760495894730,2.468,4136.8,4136.7,2.53818583]
[1760495895331,2.179,4136.8,4136.7,2.53818583]
[1760495895643,4.646,4136.8,4136.7,3.0337543]
[1760495895941,4.646,4136.8,4136.7,2.53818583]
[1760495896238,4.646,4136.8,4136.7,0.1208]
[1760495896441,5.9555274,4136.8,4136.7,0.1208]
[1760495896632,0.6336,4136.4,4136.2,0.1208]
[1760495896813,2.41739269,4136.7,4134.9,16.31808513]
[1760495896814,0.6336,4135.9,4135.1,2.58941088]
[1760495897009,1.0702,4135.9,4135.8,0.1208]
[1760495897225,3.5372,4135.9,4135.8,0.1208]
[1760495899640,8.47055416,4135.9,4135.1,0.002]
[1760495899846,0.6336,4135.8,4135.6,0.1208]
[1760495900146,3.05151868,4135.8,4135.6,0.1208]
[1760495900348,3.48817035,4135.7,4135.6,0.1208]
[1760495900546,3.48817035,4135.7,4135.1,0.002]
[1760495900547,0.6336,4135.2,4135.1,0.002]
[1760495900734,5.51886272,4135.2,4135.1,0.002]
[1760495901058,7.87546272,4135.2,4135.1,0.002]
[1760495901613,8.39616774,4135.2,4135.1,0.002]
[1760495904047,8.77542821,4135.2,4135.1,0.002]
[1760495904218,9.90677287,4135.2,4135.1,0.002]
[1760495905346,12.08677287,4135.2,4135.1,0.002]
[1760495906581,9.90677287,4135.2,4135.1,0.002]
[1760495909364,3.05209666,4134.8,4134.7,0.002]
[1760495909567,7.72636835,4134.8,4134.7,0.002]
[1760495909753,0.6336,4132.7,4131.8,0.6407]